fUSD/lending_fUSD_20260430
["ID","MTS","AMOUNT","RATE_DAILY","PERIOD"]
[421370875,1777515040000,-7542.99719204,0.00032429,2]
[421370878,1777515040000,-500.0,0.00032429,2]
[421370876,1777515040000,-500.0,0.00032429,2]
[421370880,1777515040000,-500.0,0.00032429,2]
[421370877,1777515040000,-268.63211638,0.00032429,2]
[421370874,1777515040000,-7542.99719204,0.00032429,2]
[421370881,1777515040000,-500.0,0.00032429,2]
[421370873,1777515040000,-7542.99719204,0.00032429,2]
[421370885,1777515040000,-776.78,0.000325,7]
[421370896,1777515041000,-156.24350355,0.00033068,7]
[421370898,1777515041000,-158.068991,0.00033068,7]
[421370897,1777515041000,-161.06551411,0.00033068,7]
[421370900,1777515041000,-16944.67811375,0.00033094,2]
[421370899,1777515041000,-194.46306913,0.00033068,7]
[421370902,1777515041000,-1230.29397615,0.00033094,2]
[421370904,1777515041000,-775.04112147,0.00033094,2]
[421370903,1777515041000,-332.11298935,0.00033094,2]
[421370905,1777515041000,-378.66,0.00033094,2]
[421370901,1777515041000,-455.28347007,0.00033094,2]
[421370913,1777515042000,-319.71,0.00028726,2]
[421370912,1777515042000,-216.63,0.00028715,30]
[421370911,1777515042000,-103.08,0.00028715,30]
[421370910,1777515042000,-319.71,0.00028704,7]
[421370909,1777515042000,-319.71,0.00028693,2]
[421370914,1777515043000,-319.71,0.00028737,7]
[421370915,1777515043000,-319.71,0.00028748,30]
[421370917,1777515043000,-1458.670872,0.00030747,2]
[421370919,1777515043000,-2759.48062906,0.00030747,2]
[421370916,1777515043000,-1818.84849894,0.00030747,2]
[421370918,1777515043000,-319.71,0.00028759,2]
[421370922,1777515043000,-14516.91707537,0.00033094,2]
[421370920,1777515043000,-11873.96693393,0.00033094,2]
[421370921,1777515043000,-242281.5835624,0.00033094,2]
[421370923,1777515043000,-318.66390186,0.00033094,2]
[421370939,1777515046000,-51.385,0.00028781,30]
[421370938,1777515046000,-319.71,0.0002877,7]
[421370940,1777515046000,-268.325,0.00028781,30]
[421370941,1777515046000,-319.71,0.00028792,2]
[421370944,1777515046000,-319.71,0.00028814,30]
[421370942,1777515046000,-55.77013405,0.00028803,7]
[421370949,1777515046000,-319.71,0.00028869,7]
[421370947,1777515046000,-319.71,0.00028847,30]
[421370945,1777515046000,-319.71,0.00028825,2]
[421370946,1777515046000,-319.71,0.00028836,7]
[421370948,1777515046000,-319.71,0.00028858,2]
[421370950,1777515046000,-253.11740751,0.0002888,30]
[421370943,1777515046000,-263.93986595,0.00028803,7]
[421370954,1777515108000,1058.15,0.00030137,120]
[421370955,1777515563000,640.0,0.00027631,120]
[421370956,1777515821000,835.94808755,0.0003013,120]
[421370957,1777515942000,1000.0,0.00027514,120]
[421370958,1777516027000,2522048.58990068,0.00012,2]
[421370959,1777516159000,-3126.94894142,0.00010682,2]
[421370960,1777516205000,1846.2,0.00030137,120]
[421370965,1777516231000,-687.69603829,0.00010582,2]
[421370977,1777516232000,-535.91127959,0.00010682,2]
[421370967,1777516232000,-300.0,0.00010681,2]
[421370968,1777516232000,-1200.0,0.00010681,2]
[421370970,1777516232000,-150.0,0.00010681,2]
[421370971,1777516232000,-25050.98599088,0.00010682,2]
[421370966,1777516232000,-2242.35732713,0.00010582,2]
[421370973,1777516232000,-699.49483532,0.00010682,2]
[421370972,1777516232000,-831.64957871,0.00010682,2]
[421370975,1777516232000,-477.0558266,0.00010682,2]
[421370974,1777516232000,-550.23948953,0.00010682,2]
[421370976,1777516232000,-1263.52532736,0.00010682,2]
[421370969,1777516232000,-300.0,0.00010681,2]
[421371000,1777516238000,-1583.41443103,0.00010682,2]
[421370984,1777516238000,-2307.9233848,0.00010682,2]
[421370986,1777516238000,-631.49198458,0.00010682,2]
[421370982,1777516238000,-4239.91399917,0.00010682,2]
[421370993,1777516238000,-502.01403384,0.00010682,2]
[421370996,1777516238000,-1267.1219972,0.00010682,2]
[421370989,1777516238000,-1204.9483427,0.00010682,2]
[421370998,1777516238000,-1882.00347148,0.00010682,2]
[421371002,1777516238000,-12573.72642427,0.00010682,2]
[421371007,1777516238000,-1150.44999999,0.00010682,2]
[421371013,1777516238000,-520.64882926,0.00010682,2]
[421371020,1777516238000,-500.0,0.00010682,2]
[421371018,1777516238000,-1260.0,0.00010682,2]
[421371019,1777516238000,-956.485885,0.00010682,2]
[421371016,1777516238000,-1188.74622491,0.00010682,2]
[421371017,1777516238000,-670.48004675,0.00010682,2]
[421371009,1777516238000,-1349.90711029,0.00010682,2]
[421371014,1777516238000,-34651.56972597,0.00010682,2]
[421371012,1777516238000,-600.0,0.00010682,2]
[421371015,1777516238000,-898.06061579,0.00010682,2]
[421371011,1777516238000,-1265.3288407,0.00010682,2]
[421371064,1777516240000,-1000.0,0.00027467,2]
[421371047,1777516240000,-692.0,0.00012924,2]
[421371049,1777516240000,-250.0,0.00013199,2]
[421371051,1777516240000,-300.62381834,0.000195,2]
[421371044,1777516240000,-995684.61665711,0.00012,2]
[421371053,1777516240000,-3063.8,0.0002,5]
[421371050,1777516240000,-1079.45644698,0.00017122,2]
[421371054,1777516240000,-150.99,0.0002,2]
[421371055,1777516240000,-1079.45644698,0.00021272,2]
[421371052,1777516240000,-585.66728045,0.0002,30]
[421371058,1777516240000,-166.66,0.00026053,30]
[421371059,1777516240000,-383.42,0.000261,2]
[421371062,1777516240000,-166.66,0.0002715,30]
[421371065,1777516240000,-2000.0,0.00027601,2]
[421371063,1777516240000,-150.0,0.00027431,2]
[421371061,1777516240000,-200.0,0.00027017,2]
[421371056,1777516240000,-1079.45644698,0.00025422,2]
[421371060,1777516240000,-166.66,0.00026602,30]
[421371046,1777516240000,-152.0,0.00012688,7]
[421371045,1777516240000,-152.0,0.00012688,7]
[421371029,1777516240000,-420.0,0.00011741,2]
[421371028,1777516240000,-268.0,0.00010682,2]
[421371027,1777516240000,-16800.58079546,0.00010682,2]
[421371032,1777516240000,-500.0,0.00011999,2]
[421371030,1777516240000,-1680.0,0.00011749,2]
[421371031,1777516240000,-250.0,0.00011749,2]
[421371033,1777516240000,-500.0,0.00011999,2]
[421371037,1777516240000,-500.0,0.00011999,2]
[421371034,1777516240000,-500.0,0.00011999,2]
[421371038,1777516240000,-610.37436755,0.00011999,2]
[421371035,1777516240000,-500.0,0.00011999,2]
[421371036,1777516240000,-500.0,0.00011999,2]
[421371041,1777516240000,-500.0,0.00011999,2]
[421371040,1777516240000,-452.20066266,0.00011999,2]
[421371039,1777516240000,-500.0,0.00011999,2]
[421371066,1777516240000,-5000.0,0.0002767,2]
[421371043,1777516240000,-500.0,0.00011999,2]
[421371048,1777516240000,-1079.45644702,0.00012972,2]
[421371071,1777516240000,-166.66,0.00028247,30]
[421371042,1777516240000,-500.0,0.00011999,2]
[421371068,1777516240000,-200.0,0.00027671,2]
[421371086,1777516240000,-916.21,0.00028681,10]
[421371092,1777516240000,-177.9,0.00028685,2]
[421371099,1777516240000,-500.0,0.00028691,2]
[421371093,1777516240000,-1002.46074748,0.00028691,2]
[421371094,1777516240000,-500.0,0.00028691,2]
[421371100,1777516240000,-500.0,0.00028691,2]
[421371095,1777516240000,-450.51306969,0.00028691,2]
[421371101,1777516240000,-500.0,0.00028691,2]
[421371096,1777516240000,-500.0,0.00028691,2]
[421371102,1777516240000,-500.0,0.00028691,2]
[421371097,1777516240000,-500.0,0.00028691,2]
[421371076,1777516240000,-500.0,0.00028595,2]
[421371098,1777516240000,-250.15799247,0.00028691,2]
[421371105,1777516240000,-500.0,0.00028691,2]
[421371104,1777516240000,-500.0,0.00028691,2]
[421371106,1777516240000,-500.0,0.00028691,2]
[421371107,1777516240000,-500.0,0.00028691,2]
[421371090,1777516240000,-1581.218,0.00028682,20]
[421371085,1777516240000,-177.9,0.00028673,30]
[421371103,1777516240000,-500.0,0.00028691,2]
[421371084,1777516240000,-504.52113878,0.00028673,5]
[421371088,1777516240000,-636.25,0.00028681,10]
[421371067,1777516240000,-174.12998999,0.00027671,2]
[421371070,1777516240000,-383.42,0.000277,2]
[421371077,1777516240000,-154.71897704,0.000286,2]
[421371073,1777516240000,-224078.1987,0.00028591,2]
[421371072,1777516240000,-185.48615149,0.00028581,2]
[421371069,1777516240000,-166.66,0.00027699,30]
[421371079,1777516240000,-177.9,0.0002865,2]
[421371078,1777516240000,-178.34,0.00028648,2]
[421371057,1777516240000,-172.78457871,0.00025953,2]
[421371074,1777516240000,-1535.0626,0.00028592,2]
[421371075,1777516240000,-2500.0,0.00028592,2]
[421371081,1777516240000,-178.34,0.00028659,7]
[421371082,1777516240000,-177.9,0.00028661,7]
[421371080,1777516240000,-2685.97,0.00028658,2]
[421371091,1777516240000,-178.34,0.00028683,2]
[421371089,1777516240000,-166.116,0.00028682,20]
[421371083,1777516240000,-178.34,0.00028671,30]
[421371087,1777516240000,-763.51,0.00028681,10]
[421371157,1777516241000,-500.0,0.00028691,2]
[421371147,1777516241000,-500.0,0.00028691,2]
[421371155,1777516241000,-500.0,0.00028691,2]
[421371149,1777516241000,-500.0,0.00028691,2]
[421371153,1777516241000,-500.0,0.00028691,2]
[421371133,1777516241000,-500.0,0.00028691,2]
[421371154,1777516241000,-374.74187401,0.00028691,2]
[421371145,1777516241000,-500.0,0.00028691,2]
[421371156,1777516241000,-500.0,0.00028691,2]
[421371144,1777516241000,-500.0,0.00028691,2]
[421371139,1777516241000,-500.0,0.00028691,2]
[421371146,1777516241000,-500.0,0.00028691,2]
[421371148,1777516241000,-500.0,0.00028691,2]
[421371158,1777516241000,-500.0,0.00028691,2]
[421371152,1777516241000,-500.0,0.00028691,2]
[421371150,1777516241000,-500.0,0.00028691,2]
[421371138,1777516241000,-247.4187401,0.00028691,2]
[421371160,1777516241000,-500.0,0.00028691,2]
[421371161,1777516241000,-500.0,0.00028691,2]
[421371169,1777516241000,-699.1,0.000287,7]
[421371159,1777516241000,-500.0,0.00028691,2]
[421371162,1777516241000,-500.0,0.00028691,2]
[421371165,1777516241000,-151.0,0.00028692,7]
[421371163,1777516241000,-230.7256403,0.00028691,2]
[421371164,1777516241000,-151.0,0.00028692,7]
[421371167,1777516241000,-178.34,0.00028695,7]
[421371151,1777516241000,-500.0,0.00028691,2]
[421371166,1777516241000,-1055642.482,0.00028692,2]
[421371168,1777516241000,-177.9,0.00028697,7]
[421371137,1777516241000,-500.0,0.00028691,2]
[421371111,1777516241000,-500.0,0.00028691,2]
[421371112,1777516241000,-500.0,0.00028691,2]
[421371113,1777516241000,-500.0,0.00028691,2]
[421371108,1777516241000,-500.0,0.00028691,2]
[421371116,1777516241000,-500.0,0.00028691,2]
[421371109,1777516241000,-500.0,0.00028691,2]
[421371114,1777516241000,-500.0,0.00028691,2]
[421371115,1777516241000,-500.0,0.00028691,2]
[421371110,1777516241000,-500.0,0.00028691,2]
[421371125,1777516241000,-500.0,0.00028691,2]
[421371126,1777516241000,-500.0,0.00028691,2]
[421371128,1777516241000,-500.0,0.00028691,2]
[421371130,1777516241000,-500.0,0.00028691,2]
[421371117,1777516241000,-500.0,0.00028691,2]
[421371119,1777516241000,-500.0,0.00028691,2]
[421371122,1777516241000,-500.0,0.00028691,2]
[421371120,1777516241000,-500.0,0.00028691,2]
[421371118,1777516241000,-500.0,0.00028691,2]
[421371121,1777516241000,-500.0,0.00028691,2]
[421371123,1777516241000,-500.0,0.00028691,2]
[421371124,1777516241000,-500.0,0.00028691,2]
[421371135,1777516241000,-500.0,0.00028691,2]
[421371141,1777516241000,-500.0,0.00028691,2]
[421371136,1777516241000,-500.0,0.00028691,2]
[421371132,1777516241000,-500.0,0.00028691,2]
[421371143,1777516241000,-500.0,0.00028691,2]
[421371142,1777516241000,-500.0,0.00028691,2]
[421371140,1777516241000,-500.0,0.00028691,2]
[421371171,1777516241000,-178.34,0.00028707,30]
[421371134,1777516241000,-500.0,0.00028691,2]
[421371172,1777516241000,-177.9,0.00028709,30]
[421371201,1777516241000,-500.0,0.00028869,2]
[421371202,1777516241000,-178.34,0.00028874,7]
[421371207,1777516241000,-177.9,0.00028899,2]
[421371217,1777516241000,-178.34,0.00028958,30]
[421371206,1777516241000,-178.34,0.00028898,2]
[421371209,1777516241000,-178.34,0.0002891,7]
[421371210,1777516241000,-177.9,0.00028911,7]
[421371215,1777516241000,-178.34,0.00028946,7]
[421371216,1777516241000,-177.9,0.00028947,7]
[421371214,1777516241000,-177.9,0.00028935,2]
[421371211,1777516241000,-178.34,0.00028922,30]
[421371212,1777516241000,-177.9,0.00028923,30]
[421371208,1777516241000,-1400.0,0.000289,10]
[421371213,1777516241000,-178.34,0.00028934,2]
[421371220,1777516241000,-177.9,0.00028971,2]
[421371229,1777516241000,-178.34,0.00029029,30]
[421371219,1777516241000,-178.34,0.0002897,2]
[421371218,1777516241000,-177.9,0.00028959,30]
[421371226,1777516241000,-178.34,0.00029006,2]
[421371225,1777516241000,-177.9,0.00029006,2]
[421371221,1777516241000,-178.34,0.00028982,7]
[421371228,1777516241000,-178.34,0.00029018,7]
[421371227,1777516241000,-177.9,0.00029018,7]
[421371222,1777516241000,-177.9,0.00028983,7]
[421371224,1777516241000,-178.34,0.00028994,30]
[421371223,1777516241000,-177.9,0.00028994,30]
[421371230,1777516241000,-177.9,0.0002903,30]
[421371198,1777516241000,-177.9,0.00028852,30]
[421371199,1777516241000,-178.34,0.00028862,2]
[421371181,1777516241000,-178.34,0.00028767,7]
[421371200,1777516241000,-177.9,0.00028864,2]
[421371170,1777516241000,-918.35,0.000287,7]
[421371173,1777516241000,-178.34,0.00028719,2]
[421371174,1777516241000,-177.9,0.00028721,2]
[421371177,1777516241000,-178.34,0.00028743,30]
[421371179,1777516241000,-178.34,0.00028755,2]
[421371175,1777516241000,-178.34,0.00028731,7]
[421371178,1777516241000,-177.9,0.00028745,30]
[421371203,1777516241000,-177.9,0.00028876,7]
[421371180,1777516241000,-177.9,0.00028757,2]
[421371182,1777516241000,-177.9,0.00028768,7]
[421371183,1777516241000,-178.34,0.00028779,30]
[421371190,1777516241000,-177.9,0.00028804,7]
[421371193,1777516241000,-178.34,0.00028827,2]
[421371176,1777516241000,-177.9,0.00028733,7]
[421371192,1777516241000,-177.9,0.00028816,30]
[421371191,1777516241000,-178.34,0.00028815,30]
[421371196,1777516241000,-177.9,0.0002884,7]
[421371194,1777516241000,-177.9,0.00028828,2]
[421371205,1777516241000,-177.9,0.00028887,30]
[421371204,1777516241000,-178.34,0.00028886,30]
[421371195,1777516241000,-178.34,0.00028838,7]
[421371197,1777516241000,-178.34,0.0002885,30]
[421371189,1777516241000,-178.34,0.00028803,7]
[421371184,1777516241000,-177.9,0.0002878,30]
[421371186,1777516241000,-177.9,0.00028792,2]
[421371188,1777516241000,-700.0,0.000288,10]
[421371185,1777516241000,-178.34,0.00028791,2]
[421371187,1777516241000,-166.66,0.00028796,30]
[421371269,1777516242000,-155.0,0.00030137,40]
[421371278,1777516242000,-640.0,0.00031084,120]
[421371270,1777516242000,-472.21952539,0.00030137,7]
[421371277,1777516242000,-2000.0,0.00031051,2]
[421371268,1777516242000,-1079.45644698,0.00029571,2]
[421371260,1777516242000,-177.9,0.00029209,30]
[421371267,1777516242000,-291.81242439,0.00029417,2]
[421371261,1777516242000,-178.34,0.00029209,30]
[421371259,1777516242000,-178.34,0.00029197,7]
[421371262,1777516242000,-177.9,0.0002922,2]
[421371266,1777516242000,-717.28677977,0.000294,30]
[421371273,1777516242000,-176.63,0.00030411,120]
[421371287,1777516242000,-699.1,0.000325,7]
[421371274,1777516242000,-383.42,0.000305,2]
[421371272,1777516242000,-918.35,0.000302,7]
[421371276,1777516242000,-928.0,0.00030813,2]
[421371275,1777516242000,-6030.59,0.00030813,2]
[421371279,1777516242000,-227.07,0.000311,14]
[421371285,1777516242000,-471.0,0.00032489,30]
[421371280,1777516242000,-154.71897704,0.00031305,2]
[421371281,1777516242000,-360.85003849,0.00031441,2]
[421371284,1777516242000,-500.0,0.00032428,120]
[421371283,1777516242000,-500.0,0.00032428,120]
[421371282,1777516242000,-198.8522559,0.00031641,60]
[421371286,1777516242000,-1384.0,0.00032489,30]
[421371256,1777516242000,-177.9,0.00029185,2]
[421371271,1777516242000,-699.1,0.000302,7]
[421371258,1777516242000,-177.9,0.00029197,7]
[421371246,1777516242000,-178.34,0.00029125,7]
[421371265,1777516242000,-178.44,0.00029232,7]
[421371290,1777516242000,-360.85003849,0.00032863,2]
[421371231,1777516242000,-178.34,0.00029041,2]
[421371235,1777516242000,-178.34,0.00029065,30]
[421371239,1777516242000,-178.34,0.00029089,7]
[421371237,1777516242000,-178.34,0.00029077,2]
[421371240,1777516242000,-177.9,0.0002909,7]
[421371232,1777516242000,-177.9,0.00029042,2]
[421371233,1777516242000,-178.34,0.00029053,7]
[421371234,1777516242000,-177.9,0.00029054,7]
[421371236,1777516242000,-177.9,0.00029066,30]
[421371238,1777516242000,-177.9,0.00029078,2]
[421371241,1777516242000,-178.34,0.00029101,30]
[421371247,1777516242000,-177.9,0.00029137,30]
[421371245,1777516242000,-177.9,0.00029125,7]
[421371242,1777516242000,-177.9,0.00029102,30]
[421371244,1777516242000,-178.34,0.00029113,2]
[421371252,1777516242000,-177.9,0.00029161,7]
[421371243,1777516242000,-177.9,0.00029113,2]
[421371253,1777516242000,-178.34,0.00029161,7]
[421371250,1777516242000,-177.9,0.00029149,2]
[421371251,1777516242000,-178.34,0.00029149,2]
[421371249,1777516242000,-500.0,0.00029143,2]
[421371248,1777516242000,-178.34,0.00029137,30]
[421371255,1777516242000,-178.34,0.00029173,30]
[421371264,1777516242000,-177.98,0.00029232,7]
[421371263,1777516242000,-178.34,0.0002922,2]
[421371254,1777516242000,-177.9,0.00029173,30]
[421371257,1777516242000,-178.34,0.00029185,2]
[421371288,1777516242000,-163.962,0.00032566,2]
[421371289,1777516242000,-918.35,0.000326,7]
[421371292,1777516242000,-1182.87,0.00033,7]
[421371324,1777516242000,-918.35,0.000343,7]
[421371325,1777516242000,-150.3,0.00034501,2]
[421371326,1777516242000,-2000.0,0.00034502,2]
[421371328,1777516242000,-640.0,0.00034538,120]
[421371334,1777516242000,-150.32,0.00034565,14]
[421371330,1777516242000,-150.32,0.00034565,2]
[421371335,1777516242000,-1600.0,0.00034904,120]
[421371337,1777516242000,-174.11999,0.00035205,30]
[421371336,1777516242000,-3248.83222803,0.00035075,96]
[421371339,1777516242000,-151.0,0.00035616,7]
[421371340,1777516242000,-151.0,0.00035616,7]
[421371333,1777516242000,-150.32,0.00034565,2]
[421371341,1777516242000,-360.85003849,0.00035709,2]
[421371342,1777516242000,-168.48,0.00035887,3]
[421371343,1777516242000,-173.92,0.00035887,3]
[421371351,1777516242000,-150.0,0.00036518,7]
[421371347,1777516242000,-150.71114757,0.00036518,7]
[421371354,1777516242000,-250.0,0.00037042,43]
[421371346,1777516242000,-150.0,0.00036518,7]
[421371345,1777516242000,-150.24825091,0.00036518,7]
[421371344,1777516242000,-150.0,0.00036518,7]
[421371348,1777516242000,-150.0,0.00036518,7]
[421371349,1777516242000,-151.15968849,0.00036518,7]
[421371350,1777516242000,-150.0,0.00036518,7]
[421371352,1777516242000,-154.71897704,0.00036714,2]
[421371291,1777516242000,-5256.4349095,0.00032909,2]
[421371353,1777516242000,-927.058,0.00036813,2]
[421371320,1777516242000,-540.0,0.00034022,5]
[421371323,1777516242000,-360.85003849,0.00034286,2]
[421371338,1777516242000,-250.0,0.00035562,38]
[421371321,1777516242000,-630.0,0.00034022,5]
[421371301,1777516242000,-391.73328766,0.00033067,30]
[421371322,1777516242000,-699.1,0.000342,30]
[421371298,1777516242000,-7142.856,0.00033067,30]
[421371296,1777516242000,-382.65888587,0.00033067,30]
[421371293,1777516242000,-500.0,0.00033067,30]
[421371299,1777516242000,-7407.141672,0.00033067,30]
[421371297,1777516242000,-653.44802096,0.00033067,30]
[421371303,1777516242000,-8260.13072239,0.00033067,30]
[421371294,1777516242000,-1030.0,0.00033067,30]
[421371300,1777516242000,-7681.20591386,0.00033067,30]
[421371302,1777516242000,-7965.41053268,0.00033067,30]
[421371305,1777516242000,-1795.60404679,0.00033067,30]
[421371304,1777516242000,-8565.75555911,0.00033067,30]
[421371307,1777516242000,-151.0,0.00033067,30]
[421371295,1777516242000,-6888.0,0.00033067,30]
[421371316,1777516242000,-1079.45644698,0.00033721,2]
[421371318,1777516242000,-501.22942985,0.00033975,5]
[421371306,1777516242000,-179.88277111,0.00033067,30]
[421371319,1777516242000,-154.71897704,0.0003401,2]
[421371317,1777516242000,-928.0,0.00033813,2]
[421371312,1777516242000,-151.0,0.00033067,30]
[421371313,1777516242000,-151.0,0.00033067,30]
[421371314,1777516242000,-151.0,0.00033067,30]
[421371311,1777516242000,-151.0,0.00033067,30]
[421371310,1777516242000,-151.0,0.00033067,30]
[421371309,1777516242000,-151.0,0.00033067,30]
[421371308,1777516242000,-151.0,0.00033067,30]
[421371315,1777516242000,-2690.75563388,0.00033228,91]
[421371406,1777516243000,-14945.0,0.0004,120]
[421371398,1777516243000,-151.0,0.000398,30]
[421371399,1777516243000,-269.09493033,0.000399,120]
[421371404,1777516243000,-736.48921516,0.0004,120]
[421371405,1777516243000,-615.20735578,0.0004,120]
[421371397,1777516243000,-151.0,0.000398,30]
[421371392,1777516243000,-151.0,0.000398,30]
[421371389,1777516243000,-174.13,0.00039799,120]
[421371393,1777516243000,-151.0,0.000398,30]
[421371391,1777516243000,-100141.66572835,0.000398,30]
[421371386,1777516243000,-250.0,0.00039619,63]
[421371402,1777516243000,-1000.0,0.0004,120]
[421371394,1777516243000,-151.0,0.000398,30]
[421371400,1777516243000,-383.42,0.000399,2]
[421371420,1777516243000,-387.0,0.00040208,2]
[421371403,1777516243000,-15000.0,0.0004,120]
[421371407,1777516243000,-653.95,0.0004,120]
[421371408,1777516243000,-284.01,0.0004,120]
[421371409,1777516243000,-197.24,0.0004,120]
[421371410,1777516243000,-583.80259691,0.0004,30]
[421371411,1777516243000,-1778.62342461,0.0004,120]
[421371412,1777516243000,-1835.01913642,0.0004,120]
[421371414,1777516243000,-250.0,0.00040091,70]
[421371413,1777516243000,-344.05,0.0004,120]
[421371415,1777516243000,-150.0,0.00040095,120]
[421371417,1777516243000,-1172.8691631,0.00040121,2]
[421371419,1777516243000,-387.0,0.00040185,2]
[421371390,1777516243000,-150.0,0.00039799,120]
[421371401,1777516243000,-360.85003849,0.00039977,15]
[421371388,1777516243000,-174.13,0.00039799,120]
[421371364,1777516243000,-508.36569873,0.0003799,120]
[421371385,1777516243000,-223.13324625,0.00039606,2]
[421371416,1777516243000,-300.0,0.000401,120]
[421371357,1777516243000,-150.0,0.00037532,7]
[421371356,1777516243000,-360.85003849,0.00037132,2]
[421371365,1777516243000,-640.0,0.00037992,120]
[421371366,1777516243000,-250.0,0.00038155,49]
[421371360,1777516243000,-300.825896,0.00037987,2]
[421371358,1777516243000,-1079.45644698,0.00037871,2]
[421371367,1777516243000,-1600.0,0.00038394,120]
[421371363,1777516243000,-300.825896,0.00037987,2]
[421371368,1777516243000,-150.0,0.00038547,7]
[421371359,1777516243000,-2000.0,0.00037952,2]
[421371362,1777516243000,-300.825896,0.00037987,2]
[421371361,1777516243000,-300.825896,0.00037987,2]
[421371369,1777516243000,-360.85003849,0.00038554,2]
[421371371,1777516243000,-4441.21354272,0.00038769,106]
[421371370,1777516243000,-295.9407463,0.00038766,14]
[421371373,1777516243000,-502.76290144,0.00039033,5]
[421371382,1777516243000,-4546.71203501,0.00039385,108]
[421371377,1777516243000,-156.24820543,0.00039194,120]
[421371384,1777516243000,-150.0,0.00039561,7]
[421371375,1777516243000,-352.17525674,0.00039086,7]
[421371372,1777516243000,-250.0,0.00038991,56]
[421371380,1777516243000,-362.081288,0.00039239,2]
[421371379,1777516243000,-160.02509253,0.00039236,14]
[421371378,1777516243000,-383.42,0.000392,2]
[421371383,1777516243000,-154.71897704,0.00039419,2]
[421371381,1777516243000,-834.11217254,0.00039285,2]
[421371395,1777516243000,-266.718894,0.000398,30]
[421371396,1777516243000,-236.913326,0.000398,30]
[421371387,1777516243000,-1878.919589,0.00039791,120]
[421371422,1777516243000,-387.0,0.0004024,2]
[421371475,1777516243000,-5000.0,0.000407,90]
[421371418,1777516243000,-387.0,0.00040173,2]
[421371456,1777516243000,-300.0,0.000406,120]
[421371453,1777516243000,-1354.5071,0.000406,45]
[421371452,1777516243000,-136955.60188583,0.000406,45]
[421371455,1777516243000,-245.26,0.000406,79]
[421371460,1777516243000,-151.0,0.000406,30]
[421371471,1777516243000,-665.945,0.00040666,30]
[421371472,1777516243000,-619.09,0.00040688,120]
[421371474,1777516243000,-150.0182607,0.000407,30]
[421371473,1777516243000,-566.09,0.000407,91]
[421371461,1777516243000,-151.0,0.000406,30]
[421371470,1777516243000,-4900.02636876,0.00040616,112]
[421371469,1777516243000,-299.228944,0.000406,30]
[421371464,1777516243000,-196.66037887,0.000406,30]
[421371466,1777516243000,-151.0,0.000406,30]
[421371463,1777516243000,-174.31552149,0.000406,30]
[421371462,1777516243000,-151.0,0.000406,30]
[421371465,1777516243000,-151.0,0.000406,30]
[421371468,1777516243000,-151.0,0.000406,30]
[421371467,1777516243000,-199.937438,0.000406,30]
[421371476,1777516243000,-5525.226398,0.000407,90]
[421371478,1777516243000,-823.61,0.000407,120]
[421371477,1777516243000,-2709.31,0.000407,120]
[421371484,1777516243000,-619.09,0.00040788,120]
[421371483,1777516243000,-264.7715594,0.0004075,120]
[421371482,1777516243000,-323.23,0.00040712,81]
[421371485,1777516243000,-500.0,0.000408,7]